bitfinex-derivatives/quotes_SOLF0:USTF0_20241217
["timestamp","ask_amount","ask_price","bid_price","bid_amount"]
[1734433759004,3.0764,222.68,222.61,6.83326034]
[1734433759202,6.83326034,222.62,222.55,2.2468]
[1734433759402,6.83326034,222.6,222.52,6.83326034]
[1734433759606,9.07956034,222.6,222.52,6.83326034]
[1734433759802,6.83326034,222.6,222.56,2.2466]
[1734433760008,3.7402,222.67,222.54,8.97326034]
[1734433760209,6.83326034,222.62,222.54,8.97326034]
[1734433761210,6.83326034,222.62,222.57,2.2465]
[1734433761211,9.07936034,222.62,222.57,2.2465]
[1734433761414,6.83326034,222.62,222.57,2.2465]
[1734433761916,3.7402,222.67,222.56,6.83326034]
[1734433762113,6.83326034,222.66,222.58,6.83326034]
[1734433762313,6.83326034,222.66,222.59,2.14]
[1734433762817,2.2458,222.65,222.61,2.2461]
[1734433763414,3.7402,222.67,222.61,2.2461]
[1734433763718,6.83326034,222.65,222.61,2.2461]
[1734433765810,6.83326034,222.65,222.59,2.14]
[1734433766016,6.83326034,222.65,222.62,2.246]
[1734433767315,6.83326034,222.65,222.63,2.2459]
[1734433767614,6.83326034,222.65,222.59,2.14]
[1734433767615,6.83326034,222.67,222.6,6.83326034]
[1734433768512,2.2455,222.67,222.63,2.2459]
[1734433768815,2.2455,222.67,222.6,6.83326034]
[1734433769312,1.5506,222.68,222.64,6.83326034]
[1734433769718,1.5506,222.68,222.64,8.97326034]
[1734433770119,2.14,222.75,222.64,8.97326034]
[1734433770418,6.83326034,222.72,222.64,8.97326034]
[1734433770917,2.2453,222.69,222.65,2.2457]
[1734433771111,1.4665,222.72,222.65,6.83326034]
[1734433771313,1.5372,222.74,222.67,6.83326034]
[1734433771920,2.9133,222.81,222.71,6.83326034]
[1734433772218,6.83326034,222.79,222.72,2.14]
[1734433772609,7.52384162,222.78,222.73,2.2449]
[1734433773211,6.83326034,222.77,222.72,2.14]
[1734433773416,6.83326034,222.75,222.69,8.97326034]
[1734433773917,9.07806034,222.75,222.7,2.2452]
[1734433774113,6.83326034,222.73,222.69,2.14]
[1734433775521,9.07826034,222.73,222.69,4.3853]
[1734433776316,6.83326034,222.73,222.61,5.42264463]
[1734433776512,2.2452,222.7,222.64,6.83326034]
[1734433776922,2.2447,222.75,222.68,6.83326034]
[1734433777118,6.83326034,222.77,222.7,6.83326034]
[1734433777515,1.4665,222.81,222.76,6.83326034]
[1734433777721,6.83326034,222.86,222.78,6.83326034]
[1734433777921,1.5724,222.87,222.82,6.83326034]
[1734433778117,2.2433,222.9,222.85,2.2437]
[1734433778417,12.298975,222.91,222.84,6.83326034]
[1734433778616,7.70881466,222.91,222.85,2.2437]
[1734433779519,14.542075,222.91,222.85,2.2437]
[1734433780323,2.2432,222.9,222.85,2.2437]
[1734433782717,5.1284,222.94,222.85,6.83326034]
[1734433782920,9.82166034,222.94,222.87,6.83326034]
[1734433783223,9.82166034,222.94,222.89,2.2433]
[1734433784023,9.82166034,222.94,222.85,8.97326034]
[1734433784024,6.83326034,222.92,222.85,8.97326034]
[1734433784523,2.9884,222.94,222.87,6.83326034]
[1734433784718,2.9884,222.94,222.89,6.83326034]
[1734433784925,3.614,222.99,222.89,6.83326034]
[1734433785220,6.83326034,222.97,222.89,6.83326034]
[1734433786224,1.474,222.99,222.89,8.97326034]
[1734433786420,8.30726034,222.99,222.91,6.83326034]
[1734433787220,8.30726034,222.99,222.93,6.83326034]
[1734433787418,3.0141,223.03,222.95,6.83326034]
[1734433787620,3.0141,223.03,222.97,6.83326034]
[1734433788418,3.0141,223.03,222.99,2.2423]
[1734433788622,3.0141,223.03,222.99,9.07556034]
[1734433790020,3.0141,223.03,222.99,2.2423]
[1734433790620,3.0141,223.03,222.95,2.14]
[1734433791416,2.2421,223.01,222.95,2.14]
[1734433792229,2.2422,223.0,222.95,4.3827]
[1734433793421,3.0141,223.03,222.95,2.14]
[1734433793618,3.0141,223.03,222.96,2.2426]
[1734433793619,2.2421,223.02,222.96,2.2426]
[1734433794216,3.0141,223.03,222.96,2.2426]
[1734433794417,2.2421,223.01,222.96,2.2426]
[1734433797124,2.2421,223.02,222.97,2.2425]
[1734433799623,3.0141,223.03,222.99,2.2422]
[1734433799823,3.0141,223.03,222.96,10.62289417]
[1734433799824,1.5933,223.05,222.96,10.62289417]
[1734433800023,12.76289417,223.09,222.96,10.62289417]
[1734433800222,2.2417,223.06,222.96,10.62289417]
[1734433800423,12.76289417,223.09,222.96,10.62289417]
[1734433800728,5.41348822,223.08,222.96,10.62289417]
[1734433801027,5.41348822,223.08,222.95,2.14]
[1734433801228,5.41348822,223.08,222.96,2.2426]
[1734433801723,5.41348822,223.08,223.0,10.62289417]
[1734433802120,2.2415,223.07,223.0,12.76289417]
[1734433802321,2.2415,223.07,223.02,2.242]
[1734433804130,5.31873198,223.09,223.0,12.76289417]
[1734433804131,1.5132,223.11,223.03,10.62289417]
[1734433804625,3.7544,223.11,223.07,2.2415]
[1734433805625,1.5132,223.11,223.03,10.62289417]
[1734433805827,1.4568,223.12,223.03,10.62289417]
[1734433806732,1.4568,223.12,223.08,2.2414]
[1734433807925,3.6978,223.12,223.08,2.2414]
[1734433809433,0.21594,223.13,223.1,2.2412]
[1734433809926,2.2411,223.12,223.07,2.2415]
[1734433810131,0.21594,223.13,223.03,10.62289417]
[1734433810327,0.21594,223.13,223.0,12.76289417]
[1734433810630,0.21594,223.13,223.02,2.242]
[1734433810631,10.62289417,223.12,223.02,2.242]
[1734433810834,10.62289417,223.12,223.0,12.76289417]
[1734433811334,2.2416,223.07,223.02,2.242]
[1734433812027,2.2416,223.07,223.02,9.03910138]
[1734433812426,2.2416,223.06,223.02,9.03910138]
[1734433812930,2.2412,223.1,223.05,2.2416]
[1734433813136,8.54764138,223.13,223.04,6.79710138]
[1734433814233,2.2411,223.11,223.06,9.03860138]
[1734433814435,2.2411,223.11,223.06,6.79710138]
[1734433814636,2.2411,223.11,223.0,2.14]
[1734433814836,2.2411,223.11,223.05,6.79710138]
[1734433815036,2.2411,223.11,223.06,2.2415]
[1734433815237,1.75054,223.13,223.07,6.79710138]
[1734433815435,1.75054,223.13,223.09,6.79710138]
[1734433815436,3.99144,223.13,223.09,6.79710138]
[1734433815633,3.99144,223.13,222.97,2.2424]
[1734433815634,6.79710138,223.1,222.97,2.2424]
[1734433815834,6.79710138,223.07,222.98,6.79710138]
[1734433816138,6.79710138,223.07,222.98,9.03940138]
[1734433816536,2.2419,223.04,222.98,9.03940138]
[1734433817735,6.79710138,223.07,222.98,9.03940138]
[1734433817934,8.93710138,223.07,222.95,4.3827]
[1734433818128,2.14,223.07,222.86,4.6676067]
[1734433818335,6.79710138,222.98,222.89,6.79710138]
[1734433818632,6.79710138,222.96,222.89,6.79710138]
[1734433819038,2.2429,222.93,222.89,6.79710138]
[1734433819636,3.0306,222.97,222.82,4.67692623]
[1734433819637,2.2437,222.86,222.82,4.67692623]
[1734433819829,2.2437,222.86,222.72,36.81685733]
[1734433819830,6.79710138,222.86,222.72,36.81685733]
[1734433820031,10.64401898,222.88,222.73,15.32220721]
[1734433820232,10.64401898,222.88,222.74,4.67818823]
[1734433820432,2.244,222.83,222.75,4.67818823]
[1734433820635,2.14,222.84,222.76,4.67818823]
[1734433820936,2.2442,222.81,222.74,2.14]
[1734433821337,2.14,222.84,222.74,2.14]
[1734433822444,2.2444,222.79,222.74,2.14]
[1734433822737,10.64401898,222.82,222.69,2.14]
[1734433823138,10.64401898,222.82,222.7,4.68876835]
[1734433823441,10.64401898,222.82,222.69,4.3853]
[1734433823639,2.14,222.81,222.69,4.3853]
[1734433823942,2.2447,222.76,222.69,4.3853]
[1734433824134,2.14,222.81,222.67,10.64401898]
[1734433824336,2.14,222.81,222.67,12.88951898]
[1734433824536,2.2451,222.72,222.66,2.14]
[1734433824738,2.14,222.75,222.64,12.78401898]
[1734433824943,2.14,222.75,222.64,10.64401898]
[1734433825439,2.14,222.75,222.61,12.78401898]
[1734433825841,2.2455,222.68,222.61,12.78401898]
[1734433826041,2.14,222.7,222.61,15.03011898]
[1734433826341,2.2454,222.69,222.61,15.03011898]
[1734433828145,2.2454,222.69,222.61,12.89011898]
[1734433828542,2.2454,222.69,222.61,10.64401898]
[1734433828741,2.14,222.71,222.6,2.14]
[1734433828939,13.77731898,222.7,222.58,10.64401898]
[1734433829835,3.1333,222.7,222.58,10.64401898]
[1734433830046,5.2733,222.7,222.61,10.64401898]
[1734433830340,5.2733,222.7,222.58,10.64401898]
[1734433830745,2.2455,222.68,222.61,2.2461]
[1734433830942,5.2733,222.7,222.62,2.14]
[1734433830943,3.1333,222.7,222.62,2.14]
[1734433831140,1.5489,222.7,222.62,2.14]
[1734433831547,1.5489,222.7,222.63,2.2459]
[1734433832341,3.7942,222.7,222.63,2.2459]
[1734433833258,2.2453,222.7,222.63,2.2459]
[1734433836647,2.2452,222.7,222.63,2.2459]
[1734433837051,2.2452,222.7,222.64,2.2458]
[1734433839952,2.2453,222.7,222.64,2.2458]
[1734433843446,2.2449,222.73,222.68,2.2454]
[1734433843645,12.12711898,222.76,222.61,10.64401898]
[1734433843646,14.26711898,222.76,222.61,10.64401898]
[1734433843854,10.64401898,222.73,222.62,2.14]
[1734433844148,6.82039369,222.7,222.63,6.82039369]
[1734433844355,3.6231,222.76,222.55,44.62428316]
[1734433844356,6.82039369,222.68,222.55,44.62428316]
[1734433844554,6.82039369,222.68,222.61,6.82039369]
[1734433844851,9.06609369,222.66,222.61,2.2461]
[1734433845549,2.2457,222.66,222.62,2.246]
[1734433845944,2.14,222.71,222.58,10.6583477]
[1734433845945,2.2455,222.68,222.58,10.6583477]
[1734433846146,2.2455,222.68,222.63,2.2458]
[1734433848358,2.14,222.73,222.62,2.14]
[1734433848549,2.14,222.73,222.61,10.6583477]
[1734433848755,2.2453,222.7,222.65,2.2457]
[1734433849257,2.2453,222.7,222.62,2.14]
[1734433851453,10.6583477,222.75,222.68,2.2454]
[1734433852349,10.6583477,222.75,222.62,2.14]
[1734433852350,4.4862,222.92,222.67,12.7983477]
[1734433852558,7.56048516,222.82,222.68,2.14]
[1734433853148,7.56048516,222.82,222.72,2.245]
[1734433853149,2.2444,222.78,222.72,2.245]
[1734433853352,2.2444,222.78,222.68,2.14]
[1734433854955,2.2448,222.75,222.72,2.245]
[1734433855550,2.2449,222.74,222.7,2.2452]
[1734433855751,10.6583477,222.77,222.68,2.14]
[1734433856053,10.6583477,222.77,222.64,2.14]
[1734433856256,10.6583477,222.74,222.63,2.14]
[1734433856557,12.7983477,222.74,222.63,2.14]
[1734433856857,2.2452,222.7,222.65,2.2456]
[1734433857248,1.4627,222.73,222.65,2.2456]
[1734433857448,2.2453,222.7,222.65,2.2456]
[1734433859451,2.2453,222.7,222.66,2.2456]
[1734433860066,1.4627,222.73,222.58,10.6583477]
[1734433860362,2.2455,222.68,222.59,6.81809671]
[1734433860663,2.2455,222.68,222.6,4.67809671]
[1734433860859,2.2455,222.68,222.65,2.2457]
[1734433861051,2.2455,222.68,222.59,2.14]
[1734433861253,2.2456,222.67,222.63,2.2459]
[1734433861460,2.2456,222.67,222.64,4.68586166]
[1734433861655,10.6583477,222.71,222.65,4.68586166]
[1734433861861,2.2455,222.68,222.62,2.246]
[1734433862159,1.596,222.71,222.63,4.69336593]
[1734433862354,1.4627,222.73,222.66,2.2456]
[1734433862355,3.7076,222.73,222.66,2.2456]
[1734433862660,3.7076,222.73,222.67,4.69336593]
[1734433862661,1.4627,222.73,222.67,4.69336593]
[1734433862864,1.4627,222.73,222.68,4.69336593]
[1734433863055,1.4627,222.73,222.69,4.69336593]
[1734433863356,1.4627,222.73,222.65,2.14]
[1734433863357,1.4627,222.73,222.7,4.69336593]
[1734433863563,1.4627,222.73,222.65,2.14]
[1734433863564,2.2451,222.72,222.71,4.69336593]
[1734433863963,2.2453,222.69,222.65,4.3857]
[1734433864159,1.4627,222.73,222.66,4.71134137]
[1734433864360,1.4627,222.73,222.65,2.14]
[1734433864361,1.4627,222.73,222.67,4.71134137]
[1734433864659,1.4627,222.73,222.68,4.71134137]
[1734433864862,1.4627,222.73,222.69,4.71134137]
[1734433864863,10.6583477,222.71,222.69,4.71134137]
[1734433865062,2.14,222.7,222.58,2.14]
[1734433865255,10.6583477,222.68,222.58,2.14]
[1734433865561,1.5429,222.7,222.58,12.7983477]
[1734433865757,1.4627,222.73,222.61,10.6583477]
[1734433866362,3.7077,222.73,222.68,2.2454]
[1734433867764,1.4627,222.73,222.67,2.2455]
[1734433868472,2.2452,222.71,222.67,2.2455]
[1734433868766,1.4627,222.73,222.66,2.2456]
[1734433868968,2.2455,222.68,222.58,10.6583477]
[1734433869161,2.2455,222.68,222.59,2.14]
[1734433869358,1.4627,222.73,222.65,2.2457]
[1734433869559,2.2453,222.7,222.65,2.2457]
[1734433869759,1.4627,222.73,222.65,2.2457]
[1734433870265,2.2453,222.7,222.65,2.2457]
[1734433870673,2.2455,222.68,222.63,2.2459]
[1734433870867,1.4627,222.73,222.63,2.2459]
[1734433871464,1.4627,222.73,222.62,2.246]
[1734433871465,10.6583477,222.71,222.62,2.246]
[1734433871772,2.14,222.7,222.62,2.246]
[1734433871968,2.2457,222.66,222.6,2.14]
[1734433872174,2.14,222.7,222.61,2.2461]
[1734433872871,2.14,222.7,222.56,2.7817]
[1734433873068,2.14,222.7,222.6,2.2462]
[1734433874571,2.2459,222.64,222.6,2.2462]
[1734433875868,2.2458,222.64,222.6,2.2462]
[1734433876067,2.2458,222.64,222.58,2.14]
[1734433876775,2.2458,222.64,222.59,2.2463]
[1734433877075,2.2458,222.64,222.58,2.14]
[1734433878675,2.2458,222.64,222.6,2.2462]
[1734433881973,6.82313398,222.61,222.44,6.82313398]
[1734433882181,6.82313398,222.51,222.41,6.92245243]
[1734433882479,6.82313398,222.49,222.42,6.82313398]
[1734433883181,6.82313398,222.49,222.43,2.2479]
[1734433883182,9.07063398,222.49,222.43,2.2479]
[1734433883381,6.82313398,222.49,222.43,2.2479]
[1734433883676,6.82313398,222.49,222.41,1.5214]
[1734433883974,10.67858593,222.5,222.41,2.2482]
[1734433884281,2.2478,222.45,222.39,3.6921]
[1734433884472,10.67858593,222.5,222.4,2.2483]
[1734433885081,2.2478,222.46,222.41,2.2481]
[1734433885676,2.2478,222.45,222.41,2.2481]
[1734433885979,2.2478,222.45,222.4,2.2483]
[1734433886180,2.2478,222.45,222.39,3.6921]
[1734433886376,2.2477,222.46,222.39,3.6921]
[1734433887273,2.2488,222.35,222.3,2.2493]
[1734433888172,10.67858593,222.33,222.05,24.84422269]
[1734433888374,10.67858593,222.25,222.1,10.67858593]
[1734433888575,10.67858593,222.25,222.11,5.52589545]
[1734433889480,10.67858593,222.25,222.13,2.2509]
[1734433890078,2.2503,222.21,222.13,2.2509]
[1734433890273,10.67858593,222.25,222.12,2.14]
[1734433890677,10.67858593,222.28,222.13,10.67858593]
[1734433890879,5.40561974,222.36,222.19,10.67858593]
[1734433891182,5.40561974,222.36,222.2,5.2203]
[1734433891183,2.2493,222.3,222.2,5.2203]
[1734433891375,10.67858593,222.33,222.2,6.8227]
[1734433891683,10.67858593,222.33,222.24,2.2499]
[1734433892592,16.08420567,222.36,222.22,10.67858593]
[1734433893183,5.40561974,222.36,222.25,10.67858593]
[1734433893383,5.40561974,222.36,222.26,2.14]
[1734433893580,10.67858593,222.37,222.26,2.14]
[1734433894686,10.67858593,222.37,222.3,2.2493]
[1734433894687,12.92718593,222.37,222.3,2.2493]
[1734433894881,12.92718593,222.37,222.31,2.14]
[1734433896289,2.2486,222.37,222.31,2.14]
[1734433896583,2.2484,222.39,222.32,2.2491]
[1734433896890,17.10282181,222.4,222.31,2.14]
[1734433897790,2.2485,222.38,222.31,4.3892]
[1734433903090,2.2486,222.37,222.31,4.3892]
[1734433904986,2.249,222.33,222.22,17.10282181]
[1734433905389,2.249,222.33,222.23,2.14]
[1734433906497,2.2489,222.34,222.29,2.2494]
[1734433906794,2.2489,222.34,222.29,4.3894]
[1734433906994,17.10282181,222.4,222.29,2.14]
[1734433907197,3.07,222.41,222.29,2.14]
[1734433907896,2.2485,222.39,222.33,2.2489]
[1734433908093,3.07,222.41,222.29,2.14]
[1734433909392,17.10282181,222.44,222.29,2.14]
[1734433909697,17.10282181,222.44,222.3,3.1441]
[1734433909895,2.9383,222.46,222.3,20.24692181]
[1734433910096,2.9383,222.46,222.31,1.5069]
[1734433910498,2.2481,222.43,222.37,2.2485]
[1734433910693,2.2481,222.43,222.37,4.3885]
[1734433910891,2.2481,222.43,222.37,2.14]
[1734433911198,2.2481,222.43,222.38,2.2484]
[1734433911490,2.2481,222.43,222.39,2.2484]
[1734433912098,2.2481,222.43,222.37,4.3885]
[1734433912490,2.2481,222.43,222.37,2.14]
[1734433912897,2.9383,222.46,222.37,2.14]
[1734433913492,5.50160699,222.48,222.37,2.14]
[1734433913698,2.2476,222.47,222.37,2.14]
[1734433914201,5.2476,222.52,222.37,2.14]
[1734433914403,2.2475,222.48,222.37,2.14]
[1734433915202,2.2476,222.47,222.42,2.248]
[1734433915502,2.2476,222.47,222.42,4.448]
[1734433915904,2.2474,222.49,222.44,2.2478]
[1734433916498,3.0476,222.52,222.42,2.2]
[1734433917299,2.2472,222.51,222.42,2.2]
[1734433918005,2.2472,222.51,222.46,2.2476]
[1734433918200,2.2472,222.51,222.42,2.2]
[1734433918399,2.2472,222.51,222.46,2.2476]
[1734433919103,12.192281,222.52,222.47,2.2]
[1734433919304,2.247,222.53,222.47,2.2]
[1734433920399,10.675681,222.55,222.47,2.2]
[1734433920605,2.2468,222.55,222.47,2.2]
[1734433920900,2.2468,222.55,222.5,2.2472]
[1734433921102,2.2469,222.54,222.5,2.2472]
[1734433921304,10.675681,222.58,222.5,2.2472]
[1734433921698,10.675681,222.51,222.29,2.2]
[1734433922002,10.675681,222.43,222.32,5.42158526]
[1734433922200,2.2484,222.39,222.32,7.62158526]
[1734433922400,10.675681,222.43,222.32,7.62158526]
[1734433922805,10.675681,222.43,222.34,2.2488]
[1734433922806,2.2484,222.39,222.34,2.2488]
[1734433923816,2.2484,222.39,222.32,7.62158526]
[1734433923817,2.2484,222.39,222.35,2.2488]
[1734433925315,2.2483,222.4,222.35,2.2488]
[1734433927318,2.2482,222.42,222.32,7.62158526]
[1734433927715,2.2,222.45,222.32,7.62158526]
[1734433927916,2.2,222.45,222.32,9.11278526]
[1734433928517,2.2481,222.42,222.37,2.2485]
[1734433928713,2.2481,222.42,222.37,4.4485]
[1734433929110,2.2,222.45,222.37,2.2]
[1734433929414,3.7051,222.49,222.37,12.875681]
[1734433929619,1.5051,222.49,222.37,12.875681]
[1734433930411,2.2478,222.45,222.41,2.2482]
[1734433930614,2.2478,222.45,222.37,12.875681]
[1734433930817,13.639281,222.5,222.37,12.875681]
[1734433931017,2.2476,222.47,222.42,2.248]
[1734433931320,2.2476,222.47,222.42,4.448]
[1734433931917,2.2476,222.47,222.43,2.2479]
[1734433933116,13.639281,222.5,222.42,2.2]
[1734433933117,10.675681,222.53,222.42,2.2]
[1734433933314,2.2471,222.52,222.48,2.2475]
[1734433933514,1.5477,222.56,222.48,2.2]
[1734433933917,2.2468,222.55,222.48,2.2]
[1734433934422,3.7944,222.56,222.5,2.2472]
[1734433934620,3.7944,222.56,222.48,2.2]
[1734433935325,3.7944,222.56,222.51,2.2471]
[1734433935722,3.7944,222.56,222.48,2.2]
[1734433935920,10.675681,222.61,222.49,10.675681]
[1734433936822,2.2464,222.59,222.49,12.217281]
[1734433937423,2.2464,222.59,222.54,2.2468]
[1734433937620,2.2464,222.59,222.55,2.2]
[1734433940226,1.5267,222.63,222.55,2.2]
[1734433940728,6.95084316,222.63,222.55,2.2]
[1734433940929,2.2465,222.58,222.53,4.427]
[1734433941329,2.2464,222.59,222.54,2.2469]
[1734433941634,6.95084316,222.63,222.53,2.18]
[1734433941829,1.5267,222.63,222.53,2.18]
[1734433942128,12.134381,222.69,222.55,10.675681]
[1734433942524,1.4587,222.69,222.58,10.675681]
[1734433942726,6.97132133,222.69,222.59,2.18]
[1734433943231,5.51262133,222.69,222.59,2.18]
[1734433943623,10.675681,222.71,222.59,2.18]
[1734433944130,2.2453,222.69,222.63,2.2459]
[1734433944327,2.2453,222.69,222.64,2.18]
[1734433945223,2.2454,222.68,222.64,2.18]
[1734433945829,2.2453,222.69,222.64,4.4258]
[1734433946830,2.2452,222.71,222.66,2.2456]
[1734433947233,5.52524354,222.72,222.66,2.2456]
[1734433947631,10.675681,222.71,222.59,1.5843]
[1734433947935,10.675681,222.68,222.59,2.18]
[1734433948234,10.675681,222.68,222.59,4.4263]
[1734433948428,10.675681,222.68,222.59,2.18]
[1734433948629,2.2459,222.64,222.59,2.18]
[1734433948933,10.675681,222.68,222.58,2.2464]
[1734433949138,2.2461,222.62,222.59,2.18]
[1734433949332,10.675681,222.65,222.57,2.18]
[1734433949735,2.2462,222.61,222.56,4.4266]
[1734433949934,2.2462,222.61,222.56,2.2466]
[1734433950137,2.2462,222.61,222.56,4.4266]
[1734433951936,2.2463,222.6,222.56,4.4266]
[1734433952127,10.675681,222.66,222.54,2.2468]
[1734433952335,2.2465,222.58,222.55,2.18]
[1734433952734,2.2465,222.58,222.53,2.18]
[1734433953135,2.2463,222.6,222.53,2.18]
[1734433953337,1.5832,222.62,222.53,2.18]
[1734433954034,2.2464,222.59,222.54,2.2468]
[1734433954633,2.2463,222.6,222.55,2.2467]
[1734433954845,2.2463,222.6,222.53,2.18]
[1734433955036,1.5832,222.62,222.53,2.18]
[1734433956237,2.2464,222.59,222.54,2.2469]
[1734433956542,2.2464,222.59,222.53,2.18]
[1734433956543,1.5832,222.62,222.53,2.18]
[1734433956935,1.5832,222.62,222.49,1.49]
[1734433956936,10.675681,222.61,222.49,1.49]
[1734433957135,10.675681,222.58,222.46,1.58]
[1734433957340,10.675681,222.58,222.46,2.18]
[1734433957640,10.675681,222.47,222.29,10.675681]
[1734433957841,10.675681,222.43,222.29,10.675681]
[1734433958341,2.2483,222.4,222.33,2.2489]
[1734433959541,2.2487,222.36,222.29,2.2493]
[1734433960235,2.2487,222.36,222.3,2.2493]
[1734433960937,2.9934,222.46,222.29,17.10093648]
[1734433961241,2.9934,222.46,222.33,17.10093648]
[1734433961448,2.9934,222.46,222.34,2.18]
[1734433962742,2.9934,222.46,222.34,3.74]
[1734433963334,5.2411,222.46,222.4,2.2482]
[1734433963538,2.2477,222.46,222.39,2.18]
[1734433963944,2.2476,222.48,222.41,2.2482]
[1734433964441,2.18,222.54,222.39,2.18]
[1734433964636,2.18,222.55,222.4,1.5313]
[1734433965037,2.2476,222.47,222.41,2.2481]
[1734433965237,17.10093648,222.52,222.39,2.18]
[1734433965434,2.18,222.51,222.39,2.18]
[1734433965840,1.5479,222.5,222.39,2.18]
[1734433966436,2.2477,222.47,222.4,2.2483]
[1734433966743,1.5479,222.5,222.4,2.2483]
[1734433967448,2.2476,222.47,222.4,2.2483]
[1734433967946,1.5479,222.5,222.4,2.2483]
[1734433969348,1.5479,222.5,222.35,4.4287]
[1734433969349,17.10093648,222.48,222.35,4.4287]
[1734433969841,1.5954,222.47,222.35,2.18]
[1734433970047,1.5954,222.47,222.36,2.2487]
[1734433970048,2.18,222.46,222.36,2.2487]
[1734433971446,2.18,222.46,222.35,2.18]
[1734433971741,1.5726,222.49,222.37,17.10093648]
[1734433971944,2.2475,222.48,222.43,2.248]
[1734433972448,2.2476,222.47,222.41,4.4681]
[1734433972650,1.5726,222.49,222.41,2.22]
[1734433973942,3.8201,222.49,222.43,2.248]
[1734433974148,1.5726,222.49,222.43,2.248]
[1734433975453,2.2476,222.47,222.42,2.2481]
[1734433975947,1.5726,222.49,222.41,2.22]
[1734433976545,7.57114234,222.52,222.41,2.22]
[1734433977445,2.2474,222.49,222.44,2.2479]
[1734433978645,7.57114234,222.52,222.41,2.22]
[1734433979046,1.5542,222.51,222.41,2.22]
[1734433979245,2.2476,222.47,222.41,4.4682]
[1734433979457,5.35114234,222.52,222.41,2.22]
[1734433979652,2.22,222.56,222.41,2.22]
[1734433980146,2.22,222.56,222.43,10.67315235]
[1734433980544,2.2472,222.51,222.46,2.2476]
[1734433980949,2.22,222.56,222.43,10.67315235]
[1734433981354,2.22,222.56,222.47,2.2475]
[1734433981756,2.2472,222.51,222.46,2.2476]
[1734433984361,5.33914998,222.54,222.46,2.2476]
[1734433984560,2.2473,222.5,222.46,2.2476]
[1734433985063,2.2475,222.48,222.43,2.2479]
[1734433986562,16.01230233,222.54,222.41,2.22]
[1734433986861,2.2474,222.49,222.44,2.2478]
[1734433988460,16.01230233,222.54,222.44,2.2478]
[1734433988662,2.2475,222.48,222.43,2.248]
[1734433989164,2.2479,222.44,222.39,2.2484]
[1734433989354,2.2479,222.44,222.4,2.22]
[1734433990064,2.2479,222.44,222.39,2.2484]
[1734433990461,2.2479,222.44,222.4,2.2482]
[1734433990966,1.5363,222.5,222.4,10.67315235]
[1734433991160,2.22,222.51,222.4,10.67315235]
[1734433991362,5.33914998,222.54,222.43,10.67315235]
[1734433991563,2.2471,222.52,222.47,2.2475]
[1734433992157,2.2472,222.51,222.47,2.2475]
[1734433992764,5.33914998,222.54,222.44,2.22]
[1734433992960,2.247,222.53,222.48,2.2474]
[1734433993569,2.2471,222.52,222.48,2.2474]
[1734433994359,5.33914998,222.54,222.44,1.5193]
[1734433994558,5.33914998,222.54,222.42,2.22]
[1734433994966,2.2477,222.46,222.42,2.22]
[1734433996469,2.2477,222.46,222.42,4.4681]
[1734433997368,12.89315235,222.52,222.4,12.89315235]
[1734433997570,12.89315235,222.52,222.4,4.4682]
[1734433997971,12.89315235,222.52,222.4,2.22]
[1734433998174,12.89315235,222.52,222.41,2.2481]
[1734433998766,2.2477,222.46,222.41,2.2481]
[1734433998969,2.22,222.5,222.43,2.248]
[1734433999276,2.2475,222.48,222.43,2.248]
[1734433999670,2.22,222.5,222.43,2.248]
[1734434000470,2.2476,222.47,222.43,2.248]
[1734434002873,12.83315235,222.51,222.39,12.83315235]
[1734434004576,2.2476,222.47,222.43,2.2479]